fUST/lending_fUST_20250905
["ID","MTS","AMOUNT","RATE_DAILY","PERIOD"]
[383616188,1757039449540,-195.63280249,0.00015086,2]
[383616189,1757039449549,-480.0,0.00015086,2]
[383616190,1757039449559,-151.0,0.00015086,2]
[383616191,1757039449568,-482.1908618,0.00015086,2]
[383616192,1757039449578,-480.0,0.00015086,2]
[383616193,1757039449587,-499.08,0.00015086,2]
[383616194,1757039449597,-480.0,0.00015086,2]
[383616195,1757039449607,-480.0,0.00015086,2]
[383616196,1757039449616,-480.0,0.00015086,2]
[383616197,1757039449626,-8733.94,0.00015086,2]
[383616198,1757039449635,-480.0,0.00015086,2]
[383616199,1757039449645,-480.0,0.00015086,2]
[383616200,1757039449654,-480.0,0.00015086,2]
[383616201,1757039449663,-480.0,0.00015086,2]
[383616202,1757039449673,-480.0,0.00015086,2]
[383616203,1757039449683,-1166.13,0.00015086,2]
[383616204,1757039449692,-480.0,0.00015086,2]
[383616205,1757039449701,-480.0,0.00015086,2]
[383616206,1757039449711,-480.0,0.00015086,2]
[383616207,1757039449720,-480.0,0.00015086,2]
[383616208,1757039449730,-785.74,0.00015086,2]
[383616209,1757039449739,-480.0,0.00015086,2]
[383616210,1757039449749,-480.0,0.00015086,2]
[383616211,1757039449759,-481.99902916,0.00015086,2]
[383616212,1757039449772,-480.0,0.00015086,2]
[383616213,1757039449781,-480.0,0.00015086,2]
[383616214,1757039449791,-480.0,0.00015086,2]
[383616215,1757039449800,-480.0,0.00015086,2]
[383616216,1757039449809,-1080.29,0.00015086,2]
[383616217,1757039449818,-480.0,0.00015086,2]
[383616218,1757039449828,-151.0,0.00015086,2]
[383616219,1757039449837,-151.0,0.00015086,2]
[383616220,1757039449847,-480.0,0.00015086,2]
[383616221,1757039449856,-480.0,0.00015086,2]
[383616222,1757039449866,-480.0,0.00015086,2]
[383616223,1757039449875,-151.0,0.00015086,2]
[383616224,1757039449885,-480.0,0.00015086,2]
[383616225,1757039449894,-480.0,0.00015086,2]
[383616226,1757039449903,-480.0,0.00015086,2]
[383616227,1757039449913,-251.557949,0.00015086,2]
[383616228,1757039449923,-153.172244,0.00015086,2]
[383616229,1757039449933,-251.557949,0.00015086,2]
[383616230,1757039449943,-251.557949,0.00015086,2]
[383616231,1757039449952,-480.0,0.00015086,2]
[383616232,1757039449961,-251.557949,0.00015086,2]
[383616233,1757039449971,-480.0,0.00015086,2]
[383616234,1757039449980,-2225.26,0.00015086,2]
[383616235,1757039449989,-480.0,0.00015086,2]
[383616237,1757039449998,-176.34761,0.00015086,2]
[383616238,1757039450008,-500.0,0.00015087,2]
[383616239,1757039450018,-157.0,0.00015087,2]
[383616240,1757039450027,-648.2492163,0.00015087,2]
[383616241,1757039450036,-500.0,0.00015087,2]
[383616242,1757039450047,-157.0,0.00015087,2]
[383616243,1757039450056,-182.28793878,0.00015087,2]
[383616244,1757039450066,-211.02,0.00015087,2]
[383616245,1757039450075,-157.0,0.00015088,2]
[383616246,1757039450085,-500.0,0.00015088,2]
[383616247,1757039450095,-500.0,0.00015088,2]
[383616248,1757039450104,-288.11142875,0.00015088,2]
[383616249,1757039450113,-199.44764227,0.00015088,2]
[383616250,1757039450123,-480.0,0.00015088,2]
[383616251,1757039450133,-475.4696204,0.00015088,2]
[383616252,1757039450142,-480.0,0.00015088,2]
[383616253,1757039450151,-480.0,0.00015088,2]
[383616254,1757039450161,-482.48719446,0.00015088,2]
[383616255,1757039450170,-480.0,0.00015088,2]
[383616256,1757039450179,-480.0,0.00015088,2]
[383616257,1757039450189,-480.0,0.00015088,2]
[383616258,1757039450198,-480.0,0.00015088,2]
[383616259,1757039450208,-480.0,0.00015088,2]
[383616260,1757039450217,-480.0,0.00015088,2]
[383616261,1757039450227,-482.34254024,0.00015088,2]
[383616262,1757039450236,-482.73277784,0.00015088,2]
[383616263,1757039450246,-480.0,0.00015088,2]
[383616264,1757039450255,-480.0,0.00015088,2]
[383616265,1757039450264,-482.27773181,0.00015088,2]
[383616266,1757039450274,-480.0,0.00015088,2]
[383616267,1757039450283,-480.0,0.00015088,2]
[383616268,1757039450294,-480.0,0.00015088,2]
[383616269,1757039450303,-480.0,0.00015088,2]
[383616270,1757039450313,-480.0,0.00015088,2]
[383616271,1757039450322,-816.2,0.00015088,2]
[383616272,1757039450332,-480.0,0.00015088,2]
[383616273,1757039450341,-480.0,0.00015088,2]
[383616274,1757039450351,-480.0,0.00015088,2]
[383616275,1757039450360,-480.0,0.00015088,2]
[383616276,1757039450369,-480.0,0.00015088,2]
[383616277,1757039450379,-155.168669,0.00015088,2]
[383616278,1757039450388,-480.0,0.00015088,2]
[383616279,1757039450398,-480.0,0.00015088,2]
[383616280,1757039450408,-480.0,0.00015088,2]
[383616281,1757039450417,-482.11105725,0.00015088,2]
[383616282,1757039450427,-492.39873177,0.00015088,2]
[383616283,1757039450437,-480.0,0.00015088,2]
[383616284,1757039450447,-482.12956124,0.00015088,2]
[383616285,1757039450457,-480.0,0.00015088,2]
[383616286,1757039450467,-484.3381013,0.00015088,2]
[383616287,1757039450476,-151.0,0.00015088,2]
[383616288,1757039450485,-481.56120077,0.00015088,2]
[383616289,1757039450495,-483.41257696,0.00015088,2]
[383616290,1757039450504,-480.0,0.00015088,2]
[383616291,1757039450513,-480.0,0.00015088,2]
[383616292,1757039450523,-482.42056211,0.00015088,2]
[383616293,1757039450532,-480.0,0.00015088,2]
[383616294,1757039450543,-515.81282418,0.00015088,2]
[383616295,1757039450553,-480.0,0.00015088,2]
[383616296,1757039450562,-480.0,0.00015088,2]
[383616297,1757039450572,-480.0,0.00015088,2]
[383616298,1757039450582,-480.0,0.00015088,2]
[383616299,1757039450591,-480.0,0.00015088,2]
[383616300,1757039450601,-325.71483651,0.00015088,2]
[383616301,1757039450610,-480.0,0.00015088,2]
[383616302,1757039450620,-480.0,0.00015088,2]
[383616303,1757039450629,-480.0,0.00015088,2]
[383616304,1757039450639,-480.0,0.00015088,2]
[383616305,1757039450648,-484.21622238,0.00015088,2]
[383616306,1757039450658,-480.0,0.00015088,2]
[383616307,1757039450668,-480.0,0.00015088,2]
[383616308,1757039450678,-480.0,0.00015088,2]
[383616309,1757039450687,-151.0,0.00015088,2]
[383616310,1757039450697,-480.0,0.00015088,2]
[383616311,1757039450706,-480.0,0.00015088,2]
[383616312,1757039450715,-482.66034659,0.00015088,2]
[383616313,1757039450725,-222.385208,0.00015088,2]
[383616314,1757039450735,-480.0,0.00015088,2]
[383616315,1757039450744,-486.22492575,0.00015088,2]
[383616316,1757039450754,-151.0,0.00015088,2]
[383616317,1757039450763,-151.0,0.00015088,2]
[383616318,1757039450777,-536.3132943,0.00015088,2]
[383616319,1757039450786,-480.0,0.00015088,2]
[383616320,1757039450796,-480.0,0.00015088,2]
[383616321,1757039450806,-480.0,0.00015088,2]
[383616322,1757039450815,-151.0,0.00015088,2]
[383616323,1757039450825,-480.0,0.00015088,2]
[383616324,1757039450836,-161.125071,0.00015088,2]
[383616325,1757039450928,-157.641365,0.00015088,2]
[383616326,1757039450938,-165.57594,0.00015088,2]
[383616327,1757039450947,-151.0,0.00015088,2]
[383616328,1757039450956,-480.0,0.00015088,2]
[383616329,1757039450966,-480.0,0.00015088,2]
[383616330,1757039450975,-480.0,0.00015088,2]
[383616331,1757039450984,-153.768704,0.00015088,2]
[383616332,1757039450993,-151.0,0.00015088,2]
[383616333,1757039451003,-480.88189864,0.00015088,2]
[383616334,1757039451013,-480.0,0.00015088,2]
[383616335,1757039451022,-480.0,0.00015088,2]
[383616336,1757039451031,-480.0,0.00015088,2]
[383616337,1757039451041,-480.0,0.00015088,2]
[383616338,1757039451050,-480.0,0.00015088,2]
[383616339,1757039451060,-480.0,0.00015088,2]
[383616340,1757039451069,-480.0,0.00015088,2]
[383616341,1757039451079,-480.0,0.00015088,2]
[383616342,1757039451088,-480.0,0.00015088,2]
[383616343,1757039451098,-480.0,0.00015088,2]
[383616344,1757039451107,-480.0,0.00015088,2]
[383616345,1757039451116,-480.0,0.00015088,2]
[383616346,1757039451126,-481.28101081,0.00015088,2]
[383616347,1757039451135,-481.3085743,0.00015088,2]
[383616348,1757039451145,-480.0,0.00015088,2]
[383616349,1757039451154,-480.0,0.00015088,2]
[383616350,1757039451164,-480.0,0.00015088,2]
[383616351,1757039451173,-480.0,0.00015088,2]
[383616352,1757039451183,-480.0,0.00015088,2]
[383616353,1757039451192,-480.0,0.00015088,2]
[383616354,1757039451201,-482.28867914,0.00015088,2]
[383616355,1757039451211,-480.0,0.00015088,2]
[383616356,1757039451220,-480.0,0.00015088,2]
[383616357,1757039451230,-480.0,0.00015088,2]
[383616358,1757039451240,-480.0,0.00015088,2]
[383616359,1757039451250,-480.0,0.00015088,2]
[383616360,1757039451260,-480.0,0.00015088,2]
[383616361,1757039451269,-480.0,0.00015088,2]
[383616362,1757039451278,-480.0,0.00015088,2]
[383616363,1757039451288,-480.0,0.00015088,2]
[383616364,1757039451298,-480.0,0.00015088,2]
[383616365,1757039451308,-480.0,0.00015088,2]
[383616366,1757039451318,-480.0,0.00015088,2]
[383616367,1757039451328,-480.0,0.00015088,2]
[383616368,1757039451339,-480.0,0.00015088,2]
[383616369,1757039451349,-480.0,0.00015088,2]
[383616370,1757039451359,-480.0,0.00015088,2]
[383616371,1757039451368,-245.11594875,0.00015088,2]
[383616372,1757039451378,-480.0,0.00015088,2]
[383616373,1757039451388,-480.0,0.00015088,2]
[383616374,1757039451397,-480.0,0.00015088,2]
[383616375,1757039451407,-1003.86148992,0.00015088,2]
[383616376,1757039451416,-480.0,0.00015088,2]
[383616377,1757039451426,-480.0,0.00015088,2]
[383616378,1757039451436,-354.76621787,0.00015088,2]
[383616379,1757039451445,-480.0,0.00015088,2]
[383616380,1757039451454,-480.0,0.00015088,2]
[383616381,1757039451463,-480.0,0.00015088,2]
[383616382,1757039451473,-480.0,0.00015088,2]
[383616383,1757039451482,-480.0,0.00015088,2]
[383616384,1757039451491,-480.0,0.00015088,2]
[383616385,1757039451500,-480.0,0.00015088,2]
[383616386,1757039451510,-480.0,0.00015088,2]
[383616387,1757039451519,-515.99957914,0.00015088,2]
[383616388,1757039451528,-480.0,0.00015088,2]
[383616389,1757039451537,-480.0,0.00015088,2]
[383616390,1757039451547,-480.0,0.00015088,2]
[383616391,1757039451556,-480.0,0.00015088,2]
[383616392,1757039451566,-480.0,0.00015088,2]
[383616393,1757039451575,-480.0,0.00015088,2]
[383616394,1757039451585,-481.97529195,0.00015088,2]
[383616395,1757039451596,-480.0,0.00015088,2]
[383616396,1757039451607,-554.74010907,0.00015088,2]
[383616397,1757039451617,-480.0,0.00015088,2]
[383616398,1757039451626,-483.73364546,0.00015088,2]
[383616399,1757039451637,-482.97115439,0.00015088,2]
[383616400,1757039451648,-480.0,0.00015088,2]
[383616401,1757039451657,-480.0,0.00015088,2]
[383616402,1757039451664,-489.80992069,0.00015088,2]
[383616403,1757039451671,-480.0,0.00015088,2]
[383616404,1757039451678,-489.6346626,0.00015088,2]
[383616405,1757039451684,-490.12074521,0.00015088,2]
[383616406,1757039451690,-480.0,0.00015088,2]
[383616407,1757039451697,-480.0,0.00015088,2]
[383616408,1757039451704,-480.0,0.00015088,2]
[383616409,1757039451713,-480.0,0.00015088,2]
[383616410,1757039451722,-480.0,0.00015088,2]
[383616411,1757039451731,-480.0,0.00015088,2]
[383616412,1757039451741,-489.52296064,0.00015088,2]
[383616413,1757039451750,-480.0,0.00015088,2]
[383616414,1757039451759,-488.59332235,0.00015088,2]
[383616415,1757039451769,-480.0,0.00015088,2]
[383616416,1757039451782,-480.0,0.00015088,2]
[383616417,1757039451792,-480.0,0.00015088,2]
[383616418,1757039451801,-486.38592804,0.00015088,2]
[383616419,1757039451810,-480.0,0.00015088,2]
[383616420,1757039451820,-480.0,0.00015088,2]
[383616421,1757039451830,-485.19026402,0.00015088,2]
[383616422,1757039451839,-485.58859282,0.00015088,2]
[383616423,1757039451848,-480.0,0.00015088,2]
[383616424,1757039451857,-480.0,0.00015088,2]
[383616425,1757039451866,-292.70146242,0.00015088,2]
[383616426,1757039452064,-187.29853758,0.00015088,2]
[383616427,1757039452074,-510.95417383,0.00015088,2]
[383616428,1757039452084,-485.96456097,0.00015088,2]
[383616429,1757039452093,-365.26058629,0.00015088,2]
[383616430,1757039452102,-34.67214133,0.00015088,2]
[383616433,1757039497111,1000.0,6.6e-07,120]
[383616434,1757039504331,150.0,0.00025,30]
[383616435,1757039690984,1000.0,8.2e-07,120]
[383616436,1757039698592,1000.0,8.2e-07,120]
[383616437,1757039706987,1000.0,8.2e-07,120]
[383616438,1757039715480,1000.0,8.2e-07,120]
[383616439,1757039749785,1000.0,8.2e-07,120]
[383616440,1757039758211,1000.0,8.2e-07,120]
[383616441,1757039766365,1000.0,8.2e-07,120]
[383616442,1757039789162,1000.0,8.2e-07,120]
[383616444,1757039797886,1000.0,8.2e-07,120]
[383616445,1757039803797,1000.0,8.2e-07,120]
[383616446,1757039810083,1000.0,8.2e-07,120]
[383616447,1757039816005,1000.0,8.2e-07,120]
[383616448,1757039822139,1000.0,8.2e-07,120]
[383616449,1757039832794,1000.0,8.2e-07,120]
[383616450,1757039838598,1000.0,8.2e-07,120]
[383616451,1757039844422,1000.0,8.2e-07,120]
[383616452,1757039850920,1000.0,8.2e-07,120]
[383616453,1757039857306,1000.0,8.2e-07,120]
[383616454,1757039890246,1000.0,8.2e-07,120]
[383616474,1757040044372,763.885579,0.00013699,2]
[383616475,1757040274491,150.0,0.00013698,2]
[383616529,1757040637761,-714.65930814,0.00014706,2]
[383616531,1757040637769,-173.36609249,0.0001471,2]
[383616533,1757040637777,-300.0,0.00014803,2]
[383616535,1757040637786,-300.0,0.00014803,2]
[383616537,1757040637794,-1200.0,0.00014803,2]
[383616539,1757040637803,-1587.43665401,0.00014804,2]
[383616574,1757040642884,-1551.38,0.00014804,2]
[383616582,1757040646019,-5571.5216739,0.00014804,2]
[383616583,1757040646033,-1018.9669137,0.00014804,2]
[383616584,1757040746636,200.0,0.00014806,10]
[383616585,1757040746938,200.0,0.00014806,10]
[383616586,1757040747226,200.0,0.00014806,10]
[383616587,1757040747549,340.505213,0.00014806,10]
[383616591,1757040870853,815.47,0.00012329,2]
[383616592,1757040881257,260.73,0.00012329,2]
[383616593,1757040892016,217.27,0.00012329,2]
[383616594,1757040902355,362.12,0.00012329,2]
[383616595,1757040913131,301.77,0.00012329,2]
[383616596,1757040923542,320.06,0.00012329,2]
[383616597,1757040934627,323.87,0.00012329,2]
[383616598,1757040945045,365.15,0.00012329,2]
[383616599,1757040956160,304.29,0.00012329,2]
[383616600,1757040966687,253.57,0.00012329,2]
[383616601,1757040977754,269.52,0.00012329,2]
[383616602,1757040988217,356.91,0.00012329,2]
[383616603,1757040998731,297.42,0.00012329,2]
[383616604,1757041009157,247.85,0.00012329,2]
[383616605,1757041019585,206.54,0.00012329,2]
[383616607,1757041026808,725.6913,0.00013699,2]
[383616608,1757041030025,172.12,0.00012329,2]
[383616609,1757041040689,860.62,0.00012329,2]
[383616627,1757041831988,-605.05307822,0.00014409,2]
[383616628,1757041831998,-16.25734479,0.00014555,2]
[383616629,1757041832041,-1183.74265521,0.00014555,2]
[383616630,1757041832050,-300.0,0.00014555,2]
[383616631,1757041832059,-300.0,0.00014555,2]
[383616632,1757041832068,-300.0,0.00014555,2]
[383616633,1757041832077,-297.0,0.00014555,2]
[383616634,1757041832086,-1200.0,0.00014555,2]
[383616635,1757041832096,-500.0,0.00014557,2]
[383616636,1757041832106,-500.0,0.00014557,2]
[383616637,1757041832116,-500.0,0.00014557,2]
[383616638,1757041832126,-500.0,0.00014557,2]
[383616639,1757041832136,-500.0,0.00014557,2]
[383616640,1757041832145,-500.0,0.00014557,2]
[383616641,1757041832154,-500.0,0.00014557,2]
[383616642,1757041832164,-500.0,0.00014557,2]
[383616643,1757041832174,-500.0,0.00014557,2]
[383616644,1757041832185,-500.0,0.00014557,2]
[383616645,1757041832194,-438.07421405,0.00014557,2]
[383616646,1757041832203,-173.36609248,0.00014703,2]
[383616647,1757041832215,-187.78006525,0.00014794,2]
[383616648,1757041832225,-151.0,0.00014794,2]
[383616649,1757041832236,-151.0,0.00014794,2]
[383616650,1757041832245,-151.0,0.00014794,2]
[383616651,1757041832254,-250.0,0.00014794,2]
[383616652,1757041832263,-151.0,0.00014794,2]
[383616653,1757041832273,-295.14588467,0.00014794,2]
[383616654,1757041832282,-151.0,0.00014794,2]
[383616655,1757041832291,-151.0,0.00014794,2]
[383616656,1757041832300,-151.0,0.00014794,2]
[383616657,1757041832309,-151.0,0.00014794,2]
[383616658,1757041832318,-151.0,0.00014794,2]
[383616659,1757041832327,-151.0,0.00014794,2]
[383616660,1757041832337,-151.0,0.00014794,2]
[383616661,1757041832346,-151.0,0.00014794,2]
[383616662,1757041832355,-151.0,0.00014794,2]
[383616663,1757041832365,-151.0,0.00014794,2]
[383616664,1757041832374,-151.0,0.00014794,2]
[383616665,1757041832383,-151.0,0.00014794,2]
[383616666,1757041832394,-151.0,0.00014794,2]
[383616667,1757041832405,-151.0,0.00014794,2]
[383616668,1757041832414,-151.0,0.00014794,2]
[383616669,1757041832425,-151.0,0.00014794,2]
[383616670,1757041832434,-151.0,0.00014794,2]
[383616671,1757041832444,-151.0,0.00014794,2]
[383616672,1757041832453,-151.0,0.00014794,2]
[383616673,1757041832463,-151.0,0.00014794,2]
[383616674,1757041832472,-151.0,0.00014794,2]
[383616675,1757041832484,-151.0,0.00014794,2]
[383616676,1757041832493,-151.0,0.00014794,2]
[383616677,1757041832504,-151.0,0.00014794,2]
[383616678,1757041832513,-480.0,0.00014801,2]
[383616679,1757041832522,-480.0,0.00014801,2]
[383616680,1757041832531,-546.74,0.00014801,2]
[383616681,1757041832540,-1487.78,0.00014801,2]
[383616682,1757041832550,-660.9,0.00014801,2]
[383616683,1757041832559,-480.0,0.00014801,2]
[383616684,1757041832569,-480.0,0.00014801,2]
[383616685,1757041832578,-480.0,0.00014801,2]
[383616686,1757041832588,-480.0,0.00014801,2]
[383616687,1757041832599,-480.0,0.00014801,2]
[383616688,1757041832608,-168.56298196,0.00014802,2]
[383616689,1757041832618,-500.0,0.00014802,2]
[383616690,1757041832628,-500.0,0.00014802,2]
[383616691,1757041832637,-204.34208241,0.00014802,2]
[383616692,1757041832646,-500.0,0.00014802,2]
[383616693,1757041832655,-299.87261624,0.00014802,2]
[383616694,1757041832664,-445.31441249,0.00014802,2]
[383616695,1757041832674,-227.62917887,0.00014802,2]
[383616696,1757041832683,-500.0,0.00014802,2]
[383616697,1757041832693,-197.87689736,0.00014802,2]
[383616698,1757041832705,-444.62495675,0.00014802,2]
[383616699,1757041832715,-329.76713626,0.00014802,2]
[383616700,1757041832726,-170.23286374,0.00014802,2]
[383616701,1757041832735,-191.63591063,0.00014802,2]
[383616705,1757041837989,-579.75808293,0.00014801,2]
[383616706,1757041838001,-182.13191707,0.00014801,2]
[383616707,1757041838010,-308.36408937,0.00014802,2]
[383616708,1757041838020,-369.98422509,0.00014802,2]
[383616709,1757041838029,-500.0,0.00014802,2]
[383616710,1757041838039,-500.0,0.00014802,2]
[383616711,1757041838048,-500.0,0.00014802,2]
[383616712,1757041838058,-596.68,0.00014802,2]
[383616713,1757041838067,-911.04,0.00014802,2]
[383616714,1757041838077,-480.0,0.00014802,2]
[383616715,1757041838086,-593.63,0.00014802,2]
[383616716,1757041838096,-480.0,0.00014802,2]
[383616717,1757041838105,-480.0,0.00014802,2]
[383616718,1757041838114,-480.0,0.00014802,2]
[383616719,1757041838124,-220.48356205,0.00014802,2]
[383616720,1757041838136,-259.51643795,0.00014802,2]
[383616721,1757041838145,-480.0,0.00014802,2]
[383616722,1757041838154,-180.48356205,0.00014802,2]
[383616723,1757041838171,-299.51643795,0.00014802,2]
[383616724,1757041838180,-480.0,0.00014802,2]
[383616725,1757041838190,-480.0,0.00014802,2]
[383616726,1757041838199,-480.0,0.00014802,2]
[383616727,1757041838209,-199.1581099,0.00014802,2]
[383616728,1757041838219,-480.0,0.00014802,2]
[383616729,1757041838228,-480.0,0.00014802,2]
[383616730,1757041838238,-469.93008384,0.00014802,2]
[383616731,1757041838249,-10.06991616,0.00014802,2]
[383616732,1757041838259,-480.0,0.00014802,2]
[383616733,1757041838269,-480.0,0.00014802,2]
[383616734,1757041838279,-480.0,0.00014802,2]
[383616735,1757041838288,-480.0,0.00014802,2]
[383616736,1757041838297,-488.44139647,0.00014802,2]
[383616737,1757041838307,-480.0,0.00014802,2]
[383616738,1757041838316,-173.77607932,0.00014802,2]
[383616741,1757041840120,151.0,0.00027397,120]
[383616742,1757041840186,-306.22392068,0.00014802,2]
[383616743,1757041840195,-480.0,0.00014802,2]
[383616744,1757041840205,-480.0,0.00014802,2]
[383616745,1757041840214,-480.0,0.00014802,2]
[383616746,1757041840224,-480.0,0.00014802,2]
[383616747,1757041840234,-486.32215584,0.00014803,2]
[383616748,1757041840243,-480.0,0.00014803,2]
[383616749,1757041840253,-480.0,0.00014803,2]
[383616750,1757041840262,-480.0,0.00014803,2]
[383616751,1757041840272,-484.19570979,0.00014803,2]
[383616752,1757041840281,-480.0,0.00014803,2]
[383616753,1757041840291,-480.0,0.00014803,2]
[383616754,1757041840300,-480.0,0.00014803,2]
[383616755,1757041840310,-483.17075154,0.00014803,2]
[383616756,1757041840319,-480.0,0.00014803,2]
[383616757,1757041840329,-480.0,0.00014803,2]
[383616758,1757041840338,-480.0,0.00014803,2]
[383616759,1757041840348,-480.0,0.00014803,2]
[383616760,1757041840357,-480.0,0.00014803,2]
[383616761,1757041840366,-480.0,0.00014803,2]
[383616762,1757041840375,-480.0,0.00014803,2]
[383616763,1757041840385,-480.0,0.00014803,2]
[383616764,1757041840395,-434.5,0.00014803,2]
[383616765,1757041840405,-609.07107543,0.00014803,2]
[383616766,1757041840415,-748.18,0.00014803,2]
[383616767,1757041840425,-480.0,0.00014803,2]
[383616768,1757041840434,-480.0,0.00014803,2]
[383616769,1757041840443,-480.0,0.00014803,2]
[383616770,1757041840453,-480.0,0.00014803,2]
[383616771,1757041840463,-480.0,0.00014803,2]
[383616772,1757041840472,-417.37060898,0.00014803,2]
[383616773,1757041840481,-480.0,0.00014803,2]
[383616774,1757041840491,-627.36799502,0.00014803,2]
[383616775,1757041840500,-480.0,0.00014803,2]
[383616776,1757041840510,-480.0,0.00014803,2]
[383616777,1757041840519,-480.0,0.00014803,2]
[383616778,1757041840529,-480.0,0.00014803,2]
[383616779,1757041840538,-560.84221954,0.00014803,2]
[383616780,1757041840548,-480.0,0.00014803,2]
[383616781,1757041840557,-480.0,0.00014803,2]
[383616782,1757041840566,-422.36292994,0.00014803,2]
[383616783,1757041840576,-480.0,0.00014803,2]
[383616784,1757041840585,-480.0,0.00014803,2]
[383616785,1757041840595,-480.0,0.00014803,2]
[383616786,1757041840604,-462.7523276,0.00014803,2]
[383616787,1757041840613,-480.0,0.00014803,2]
[383616788,1757041840623,-480.0,0.00014803,2]
[383616789,1757041840632,-480.0,0.00014803,2]
[383616790,1757041840641,-480.0,0.00014803,2]
[383616791,1757041840650,-480.0,0.00014803,2]
[383616792,1757041840659,-326.8010755,0.00014803,2]
[383616793,1757041840669,-480.0,0.00014803,2]
[383616794,1757041840678,-329.49742294,0.00014803,2]
[383616795,1757041840687,-480.0,0.00014803,2]
[383616796,1757041840698,-480.0,0.00014803,2]
[383616797,1757041840708,-375.96924371,0.00014803,2]
[383616802,1757041843100,-264.61509438,0.00014654,2]
[383616803,1757041843110,-571.82,0.00014801,2]
[383616804,1757041843121,-104.03075629,0.00014803,2]
[383616805,1757041843131,-376.9641181,0.00014803,2]
[383616806,1757041843141,-480.0,0.00014803,2]
[383616807,1757041843151,-484.2409629,0.00014803,2]
[383616808,1757041843161,-480.0,0.00014803,2]
[383616809,1757041843171,-480.0,0.00014803,2]
[383616810,1757041843180,-480.0,0.00014803,2]
[383616811,1757041843189,-461.18095465,0.00014803,2]
[383616812,1757041843199,-480.0,0.00014803,2]
[383616813,1757041843209,-480.0,0.00014803,2]
[383616814,1757041843218,-240.64811368,0.00014803,2]
[383616816,1757041846170,-480.0,0.00014801,2]
[383616818,1757041846180,-239.35188632,0.00014803,2]
[383616819,1757041846189,-480.0,0.00014803,2]
[383616820,1757041846199,-373.69258427,0.00014803,2]
[383616821,1757041846208,-480.0,0.00014803,2]
[383616822,1757041846218,-367.51747737,0.00014803,2]
[383616823,1757041846234,-112.48252263,0.00014803,2]
[383616824,1757041846243,-480.0,0.00014803,2]
[383616825,1757041846253,-554.85290347,0.00014803,2]
[383616826,1757041846262,-480.0,0.00014803,2]
[383616827,1757041846271,-480.0,0.00014803,2]
[383616828,1757041846281,-480.0,0.00014803,2]
[383616829,1757041846291,-480.0,0.00014803,2]
[383616830,1757041846300,-480.0,0.00014803,2]
[383616831,1757041846311,-481.52883941,0.00014803,2]
[383616832,1757041846322,-483.72601427,0.00014803,2]
[383616833,1757041846331,-484.0890797,0.00014803,2]
[383616834,1757041846339,-480.0,0.00014803,2]
[383616835,1757041846347,-480.0,0.00014803,2]
[383616836,1757041846476,-480.0,0.00014803,2]
[383616837,1757041846486,-480.0,0.00014803,2]
[383616838,1757041846496,-480.0,0.00014803,2]
[383616839,1757041846507,-480.0,0.00014803,2]
[383616840,1757041846518,-481.27437888,0.00014803,2]
[383616841,1757041846528,-480.0,0.00014803,2]